bitfinex/quotes_ETHUSD_20251011
["timestamp","ask_amount","ask_price","bid_price","bid_amount"]
[1760203317613,0.4287,3840.7,3840.1,2.60609873]
[1760203318802,2.60356458,3840.9,3840.2,0.02604031]
[1760203319112,0.4287,3841.1,3840.2,2.63006685]
[1760203319113,2.60349502,3841.0,3840.2,2.63006685]
[1760203319312,2.60356018,3840.9,3840.2,2.63006685]
[1760203319482,0.438,3840.8,3840.1,0.002]
[1760203319684,2.6037058,3840.7,3840.1,0.002]
[1760203320103,2.60394294,3840.4,3840.1,0.002]
[1760203320418,2.60395153,3840.4,3840.1,0.002]
[1760203320618,0.438,3840.3,3840.1,0.002]
[1760203321111,0.438,3840.2,3840.1,0.002]
[1760203321795,2.60390337,3840.4,3840.1,0.002]
[1760203321995,2.60390337,3840.4,3840.1,0.1316]
[1760203322253,2.60403104,3840.2,3840.1,0.002]
[1760203322520,3.04198322,3840.3,3840.1,0.002]
[1760203322719,2.60403104,3840.2,3840.1,0.002]
[1760203322912,3.04203104,3840.2,3840.1,0.002]
[1760203323222,3.04203104,3840.2,3840.1,0.1316]
[1760203327209,0.001,3840.9,3840.5,2.60378185]
[1760203327525,0.001,3840.9,3840.5,2.60381336]
[1760203327708,0.001,3840.9,3840.6,2.60372614]
[1760203327899,0.001,3840.9,3840.3,0.4588]
[1760203328101,0.001,3840.9,3840.6,2.60374184]
[1760203328427,0.001,3840.9,3840.3,0.4588]
[1760203328602,0.001,3840.9,3840.8,2.60362424]
[1760203329108,0.001,3840.9,3840.8,2.62966048]
[1760203329519,0.001,3840.9,3840.8,3.08846048]
[1760203330102,0.001,3840.9,3840.8,3.72206048]
[1760203330530,0.001,3840.9,3840.8,5.57493792]
[1760203330727,0.001,3840.9,3840.8,3.69602424]
[1760203330932,0.001,3840.9,3840.8,3.72206048]
[1760203331535,0.001,3840.9,3840.8,22.18890407]
[1760203331938,0.001,3840.9,3840.8,24.48494157]
[1760203332350,0.001,3841.3,3841.2,4.52335311]
[1760203332546,0.001,3841.3,3841.2,5.95902667]
[1760203332749,0.001,3841.3,3841.2,8.69839168]
[1760203333421,0.001,3841.3,3841.2,6.39179314]
[1760203333937,0.001,3841.3,3841.2,8.69839168]
[1760203334558,0.001,3841.3,3841.2,6.39179314]
[1760203335916,0.001,3841.9,3841.8,2.60294653]
[1760203336157,0.001,3841.9,3841.8,5.41684118]
[1760203336516,0.001,3841.9,3841.8,5.87564118]
[1760203337126,0.001,3841.9,3841.8,6.00524118]
[1760203341923,0.001,3841.9,3841.8,5.87564118]
[1760203342366,0.001,3841.9,3841.8,4.98174653]
[1760203342717,0.001,3841.9,3841.8,3.06174653]
[1760203343422,0.001,3841.9,3841.8,3.08777599]
[1760203343623,0.001,3841.9,3841.8,3.06174653]
[1760203343973,0.001,3841.9,3841.8,3.72137599]
[1760203344117,0.001,3841.9,3841.8,6.46581752]
[1760203344427,0.001,3841.9,3840.7,1.8396366]
[1760203344627,0.001,3841.9,3840.8,0.4588]
[1760203345020,0.2345,3841.9,3840.8,0.4588]
[1760203345332,0.001,3841.9,3841.1,2.60341928]
[1760203345647,0.001,3841.9,3840.8,0.4588]
[1760203345648,0.001,3841.9,3841.5,3.23674975]
[1760203345817,0.001,3841.9,3841.6,2.62909234]
[1760203346023,0.001,3841.9,3841.7,2.60301148]
[1760203346342,0.001,3841.9,3840.9,2.60350171]
[1760203346343,0.001,3841.9,3841.8,2.62897599]
[1760203346540,0.001,3841.9,3841.8,3.23654653]
[1760203346943,0.001,3841.9,3841.8,3.69534653]
[1760203347133,0.001,3841.9,3841.8,3.72137599]
[1760203348253,0.001,3841.9,3841.8,6.24779152]
[1760203352027,0.001,3841.9,3841.8,6.37739152]
[1760203352639,0.001,3841.9,3841.8,8.21702812]
[1760203353034,0.001,3841.9,3841.8,19.61702812]
[1760203353428,0.001,3841.9,3841.8,17.77739152]
[1760203354663,0.001,3841.9,3841.8,7.58023563]
[1760203354860,0.001,3841.9,3841.8,4.98174653]
[1760203355233,0.001,3841.9,3841.8,24.02467047]
[1760203355433,0.001,3841.9,3841.8,22.18822636]
[1760203357564,0.001,3842.3,3842.2,3.23627555]
[1760203357770,0.001,3842.3,3842.2,7.48890084]
[1760203357968,0.001,3842.3,3842.2,5.62647555]
[1760203362383,0.001,3842.3,3842.2,6.15013625]
[1760203364744,0.001,3842.3,3842.2,6.27973625]
[1760203364946,0.001,3842.3,3842.2,7.73969786]
[1760203365860,0.001,3842.3,3842.2,9.40809693]
[1760203366477,0.001,3842.3,3842.2,7.73969786]
[1760203367379,4.52031307,3845.7,3843.9,0.6336]
[1760203367756,4.52031307,3845.7,3844.2,2.60129633]
[1760203367757,2.6008594,3844.9,3844.2,2.60129633]
[1760203368150,2.6008594,3844.9,3844.1,2.60137015]
[1760203369289,0.432,3844.8,3844.1,2.60137015]
[1760203369673,2.60079251,3845.0,3844.2,2.60131856]
[1760203369988,2.60089064,3844.9,3844.2,2.60131856]
[1760203370189,2.60089064,3844.9,3844.1,2.60138045]
[1760203370569,2.60089064,3844.9,3844.2,2.60131245]
[1760203370892,2.60092757,3844.8,3844.1,2.60138379]
[1760203371097,3.03292757,3844.8,3844.1,2.60138379]
[1760203371296,0.432,3844.8,3844.1,2.60138379]
[1760203371596,0.432,3844.8,3844.2,2.60131732]
[1760203372302,0.432,3845.1,3844.4,2.60114472]
[1760203372494,2.6007854,3845.0,3844.2,2.60132147]
[1760203372658,2.6007854,3845.0,3844.3,2.60124457]
[1760203373476,3.03273122,3845.1,3844.4,2.60118348]
[1760203374363,2.60078149,3845.0,3844.1,0.1718]
[1760203374553,0.001,3844.8,3844.1,0.1718]
[1760203374754,2.6010981,3844.6,3843.7,2.5536]
[1760203374987,0.432,3844.5,3843.7,2.60159551]
[1760203375256,3.03321893,3844.4,3843.7,1.92]
[1760203375480,3.03321893,3844.4,3843.7,2.60165657]
[1760203375481,0.432,3844.3,3843.7,2.60165657]
[1760203375686,2.60121893,3844.4,3843.7,1.92]
[1760203375687,0.432,3844.2,3843.7,1.92]
[1760203375862,0.432,3844.1,3843.7,1.92]
[1760203376085,0.432,3844.1,3843.7,2.60164269]
[1760203376279,0.432,3844.0,3843.7,2.60164269]
[1760203376695,0.432,3844.0,3843.8,2.60158672]
[1760203377061,0.432,3844.3,3843.8,2.60158672]
[1760203377286,0.432,3844.3,3843.9,0.1296]
[1760203377486,2.60112512,3844.5,3844.2,0.1296]
[1760203378199,3.03319779,3844.4,3844.2,0.1296]
[1760203378398,0.432,3844.4,3844.2,0.1296]
[1760203378602,0.432,3844.3,3844.2,0.1296]
[1760203379382,0.432,3844.3,3842.8,1.84114432]
[1760203379715,2.60150585,3844.0,3843.8,0.1296]
[1760203380013,0.681,3843.9,3843.8,0.1296]
[1760203382016,3.28252449,3843.9,3843.8,0.1296]
[1760203382508,2.60185012,3843.5,3842.5,4.4436156]
[1760203382714,3.06817149,3843.4,3842.6,2.60240462]
[1760203383012,0.4663,3843.3,3842.5,2.60245657]
[1760203383179,3.06835227,3843.2,3842.5,0.6336]
[1760203383518,2.60205181,3843.2,3843.1,0.1296]
[1760203383828,2.60170724,3843.7,3842.3,1.92]
[1760203383990,2.60207619,3843.1,3842.9,0.1296]
[1760203384314,0.4663,3843.0,3842.9,0.1296]
[1760203385215,0.1296,3843.5,3842.9,0.1296]
[1760203385419,0.4663,3843.4,3842.9,2.73176937]
[1760203385606,2.94582858,3843.9,3842.8,2.60226337]
[1760203385607,0.3443,3843.9,3842.8,2.60226337]
[1760203385917,0.4663,3843.3,3842.3,2.5536]
[1760203386132,2.60193063,3843.3,3843.2,0.1296]
[1760203386322,0.3443,3843.9,3843.2,0.1296]
[1760203386323,2.60187467,3843.4,3843.2,0.1296]
[1760203386722,0.4663,3843.3,3843.2,0.1296]
[1760203387101,0.19046716,3843.3,3843.2,0.1296]
[1760203387297,2.60167148,3843.7,3843.2,0.1296]
[1760203387814,2.60173816,3843.6,3843.2,0.1296]
[1760203388203,0.2147,3843.9,3843.2,0.1296]
[1760203388701,2.60204111,3843.2,3843.1,0.1296]
[1760203388904,2.7312646,3843.7,3843.1,0.1296]
[1760203389134,2.60185498,3843.5,3843.1,0.1296]
[1760203389437,2.6018686,3843.4,3843.1,0.1296]
[1760203389733,0.0483,3843.3,3843.1,0.1296]
[1760203389931,0.0483,3843.2,3842.8,2.62825595]
[1760203390133,0.2147,3843.9,3843.2,0.1296]
[1760203390736,2.64989217,3843.8,3843.2,0.1296]
[1760203390931,0.0483,3844.4,3843.8,0.1296]
[1760203391110,2.6012538,3844.3,3843.8,0.1296]
[1760203391297,2.64964458,3844.2,3843.8,0.1296]
[1760203391504,0.0483,3844.1,3843.8,0.1296]
[1760203391707,0.001,3844.8,3843.3,0.6596193]
[1760203391708,0.0483,3844.4,3843.3,0.6596193]
[1760203391928,0.0483,3844.4,3844.1,0.1296]
[1760203392126,2.64948788,3844.4,3844.1,0.1296]
[1760203392340,2.64956214,3844.3,3844.1,0.1296]
[1760203392557,0.0483,3844.2,3844.1,0.1296]
[1760203392699,2.60117644,3844.5,3844.1,0.1296]
[1760203392904,0.0483,3844.5,3844.1,0.1296]
[1760203393511,2.82807869,3845.6,3844.1,3.05485147]
[1760203393734,2.6009075,3844.9,3844.7,0.1296]
[1760203394255,0.001,3844.8,3844.7,0.1296]
[1760203395749,0.001,3844.8,3844.7,2.73058317]
[1760203396423,0.001,3844.8,3844.7,2.756593]
[1760203396757,0.001,3844.8,3844.7,3.210093]
[1760203397120,0.001,3844.8,3844.7,3.390193]
[1760203397343,0.001,3844.8,3844.7,6.31880227]
[1760203400325,0.001,3844.8,3844.7,0.7107191]
[1760203400655,0.0251,3844.8,3844.7,0.7107191]
[1760203400857,2.62601552,3844.8,3844.7,0.7107191]
[1760203401166,2.62601552,3844.8,3844.7,0.1296]
[1760203401566,0.001,3844.8,3844.7,0.1296]
[1760203403266,0.001,3844.8,3844.7,0.15560983]
[1760203403572,2.55152529,3845.4,3844.7,0.02600983]
[1760203403741,2.55152529,3845.4,3844.6,2.60104232]
[1760203404772,2.60057898,3845.3,3844.6,2.60104232]
[1760203405272,2.60057898,3845.3,3844.4,2.60118614]
[1760203405472,0.0241,3845.2,3844.5,2.60110889]
[1760203405775,0.0241,3845.2,3844.4,2.60117661]
[1760203405973,2.60085012,3844.9,3844.0,1.92]
[1760203406175,0.0241,3844.8,3844.0,2.60144595]
[1760203406672,2.62503057,3844.8,3843.6,0.4535]
[1760203407084,0.0241,3844.8,3844.1,2.6013783]
[1760203407254,0.0241,3844.8,3843.9,2.60152381]
[1760203407880,2.62502817,3844.8,3844.0,2.60144016]
[1760203408176,0.0241,3844.7,3843.4,1.84114432]
[1760203408343,2.60126438,3844.3,3843.5,2.60179314]
[1760203408547,0.0241,3844.2,3843.6,1.92]
[1760203408755,0.0241,3844.2,3843.1,1.0871]
[1760203408756,2.62544828,3844.2,3843.4,4.52185767]
[1760203409173,0.0241,3844.1,3843.4,4.52185767]
[1760203409478,2.62549703,3844.1,3843.4,1.92]
[1760203409780,2.62549703,3844.1,3843.4,2.60183615]
[1760203410184,0.0241,3844.1,3843.4,2.60183615]
[1760203410488,2.6254945,3844.1,3843.2,2.60194102]
[1760203410691,2.6254945,3844.1,3843.2,0.6336]
[1760203410990,2.6254945,3844.1,3843.3,2.60193063]
[1760203411196,0.0241,3844.0,3843.3,2.60193063]
[1760203411352,2.60165433,3843.8,3842.7,1.84114432]
[1760203411553,0.2388,3843.9,3843.1,2.60206225]
[1760203411865,0.2388,3843.9,3843.3,2.60192204]
[1760203412067,2.60138651,3844.2,3843.4,2.60185171]
[1760203412247,2.62918651,3844.2,3843.4,2.60185171]
[1760203412573,2.60140449,3844.1,3843.6,0.002]
[1760203412773,0.0278,3844.2,3843.6,0.002]
[1760203412950,2.6015377,3843.9,3843.6,0.002]
[1760203413155,2.8106377,3843.9,3843.6,0.002]
[1760203413474,0.0297,3843.8,3843.6,0.002]
[1760203413985,0.0297,3843.8,3843.7,0.1296]
[1760203415979,2.63129217,3843.8,3843.7,0.1296]
[1760203416799,2.63129217,3843.8,3843.6,0.002]
[1760203416800,2.60165985,3843.7,3843.6,0.002]
[1760203417168,2.90925985,3843.7,3843.6,0.002]
[1760203417571,0.3076,3843.7,3843.6,0.002]
[1760203417771,2.90925985,3843.7,3843.6,0.002]
[1760203419700,2.60159383,3843.8,3843.6,0.002]
[1760203419930,0.1296,3844.2,3843.6,0.002]
[1760203420369,2.60164791,3843.8,3843.6,0.002]
[1760203420769,0.3057,3843.7,3843.6,0.002]
[1760203421668,2.90702211,3844.2,3843.6,0.002]
[1760203421866,0.3048,3844.0,3843.6,0.002]
[1760203422198,2.60158088,3843.9,3843.8,0.1296]
[1760203422385,2.90638088,3843.9,3843.8,0.1296]
[1760203422787,2.60141786,3844.1,3843.8,0.1296]
[1760203423314,2.90621786,3844.1,3843.8,0.1296]
[1760203423609,2.60141786,3844.1,3843.8,0.1296]
[1760203423819,3.44677151,3845.7,3843.6,0.002]
[1760203423820,0.3048,3844.7,3843.6,0.002]
[1760203424027,2.60138178,3844.2,3844.0,0.1296]
[1760203424213,0.1296,3844.7,3844.0,0.1296]
[1760203424214,0.4344,3844.7,3844.0,0.1296]
[1760203424414,0.3048,3844.7,3844.0,0.1296]
[1760203424618,2.60118581,3844.5,3844.4,0.1296]
[1760203424811,2.90598581,3844.5,3844.4,0.1296]
[1760203426430,0.001,3844.9,3844.4,1.062]
[1760203426606,0.001,3844.9,3844.6,2.60104662]
[1760203426814,0.001,3844.9,3844.5,0.4284]
[1760203427120,0.001,3844.9,3844.6,0.4284]
[1760203427316,0.001,3844.9,3844.8,2.60091552]
[1760203427711,0.001,3844.9,3844.8,3.05532467]
[1760203428417,0.001,3844.9,3844.8,3.02931552]
[1760203428595,0.001,3844.9,3844.8,3.66291552]
[1760203428799,0.001,3844.9,3844.8,4.32814971]
[1760203429331,0.001,3844.9,3844.8,4.35415886]
[1760203429638,0.001,3844.9,3844.8,6.24814971]
[1760203433147,0.001,3844.9,3844.8,3.64723419]
[1760203433310,0.001,3844.9,3844.4,1.83816172]
[1760203433644,0.001,3844.9,3844.6,0.4284]
[1760203433848,0.001,3844.9,3844.2,0.2206]
[1760203433849,0.001,3844.9,3844.3,1.92]
[1760203434064,0.001,3844.9,3844.4,2.60112139]
[1760203434356,0.001,3844.9,3844.5,2.60109838]
[1760203435363,0.001,3844.9,3844.4,2.6011856]
[1760203435813,0.001,3844.9,3844.8,2.60091552]
[1760203436239,0.001,3844.9,3844.5,3.02951731]
[1760203436432,0.001,3844.9,3844.8,2.73051552]
[1760203436931,0.001,3844.9,3844.8,0.1296]
[1760203437738,0.001,3844.9,3844.8,2.73051552]
[1760203438756,0.001,3844.9,3844.8,3.15891552]
[1760203439175,0.001,3844.9,3844.8,2.73051552]
[1760203439322,0.001,3844.9,3844.8,0.1296]
[1760203440671,0.4342,3844.9,3844.8,0.1296]
[1760203440960,0.001,3844.9,3844.8,0.1296]
[1760203441338,0.4342,3844.9,3844.8,0.1296]
[1760203443943,3.03504787,3844.9,3844.8,0.1296]
[1760203444145,0.5638,3844.9,3843.6,0.002]
[1760203444343,0.5638,3844.9,3844.3,0.1296]
[1760203444344,2.60110556,3844.6,3844.3,0.1296]
[1760203444545,0.5638,3844.9,3844.3,0.1296]
[1760203444546,0.4332,3844.5,3844.3,0.1296]
[1760203444731,2.6010047,3844.7,3844.3,0.1296]
[1760203444932,0.4332,3844.6,3844.3,0.1296]
[1760203445131,0.001,3844.9,3844.0,0.02601456]
[1760203445366,0.001,3844.9,3844.7,0.1296]
[1760203445756,0.4332,3844.8,3844.7,0.1296]
[1760203445932,0.001,3844.9,3844.7,0.1296]
[1760203446344,0.001,3844.9,3844.7,2.73055767]
[1760203446579,0.001,3844.9,3844.7,0.1296]
[1760203446778,0.001,3844.9,3844.8,0.1296]
[1760203446939,0.001,3844.9,3844.8,2.73051552]
[1760203447272,0.001,3844.9,3844.8,2.60091552]
[1760203448061,0.001,3844.9,3844.8,3.06691552]
[1760203448261,0.001,3844.9,3844.8,2.60091552]
[1760203448571,0.001,3844.9,3844.8,3.06691552]
[1760203448978,0.001,3844.9,3844.8,4.98691552]
[1760203449140,0.001,3844.9,3844.8,5.62051552]
[1760203450168,0.001,3844.9,3844.8,7.45867724]
[1760203450646,0.001,3844.9,3844.8,5.62051552]
[1760203450847,0.001,3845.4,3845.3,3.23417732]
[1760203451078,0.001,3845.4,3845.3,5.15417732]
[1760203451296,0.651,3846.0,3845.9,3.23377161]
[1760203451577,0.651,3846.0,3845.9,5.61977161]
[1760203452683,0.651,3846.0,3845.9,3.0196]
[1760203452882,1.1093,3846.0,3845.2,1.8394646]
[1760203453081,1.1093,3846.0,3845.6,1.92]
[1760203453263,0.651,3846.0,3845.6,1.92]
[1760203453469,0.4583,3845.9,3845.6,1.92]
[1760203453796,0.651,3846.0,3845.6,2.60036928]
[1760203453995,0.651,3846.0,3845.1,0.466]
[1760203453996,0.651,3846.0,3845.7,2.60025146]
[1760203454290,0.4583,3845.9,3845.1,0.6336]
[1760203454598,0.4583,3845.9,3845.3,1.92]
[1760203455303,0.4583,3845.9,3845.4,2.6004585]
[1760203455601,0.4677,3845.8,3845.1,1.92]
[1760203455803,0.4677,3845.8,3845.0,2.6007466]
[1760203455804,3.0679409,3845.8,3845.0,2.60072938]
[1760203455969,3.0679409,3845.8,3845.1,1.92]
[1760203456285,3.0679409,3845.8,3844.8,0.6336]
[1760203456601,3.06386478,3845.7,3844.6,1.8414646]
[1760203456774,3.06386478,3845.7,3845.0,2.60077191]
[1760203456979,2.60037764,3845.6,3844.7,1.92]
[1760203457177,2.60037764,3845.6,3845.5,0.1296]
[1760203457378,3.06387764,3845.6,3845.5,0.1296]
[1760203457695,2.60066774,3845.2,3844.9,0.1296]
[1760203457870,2.60084308,3845.0,3844.9,0.1296]
[1760203458375,0.1296,3845.5,3844.9,0.1296]
[1760203458576,0.4635,3845.4,3844.9,0.1296]
[1760203458899,0.4635,3845.3,3844.9,0.1296]
[1760203459112,0.4635,3845.3,3844.6,0.002]
[1760203459113,0.4635,3845.3,3844.7,2.60094989]
[1760203459301,0.4635,3845.3,3845.1,0.1296]
[1760203460390,2.60044512,3845.5,3845.1,0.1296]
[1760203460702,0.4635,3845.5,3845.2,0.1296]
[1760203461285,2.60025684,3845.8,3845.2,0.1296]
[1760203462094,0.5142,3845.9,3845.2,0.1296]
[1760203462095,0.651,3846.0,3845.9,2.60017161]
[1760203462327,0.651,3846.0,3845.9,3.82937161]
[1760203462692,0.651,3846.0,3845.9,3.85537332]
[1760203463008,0.651,3846.0,3845.9,5.77537332]
[1760203463208,0.651,3846.0,3845.9,5.74937161]
[1760203468835,0.652,3846.0,3845.9,5.74937161]
[1760203479752,0.001,3846.0,3845.9,5.74937161]
[1760203480742,0.001,3846.0,3845.9,4.64977161]
[1760203480938,0.4544,3846.0,3845.9,0.1296]
[1760203481294,0.4544,3846.0,3844.9,1.8414646]
[1760203481582,6.0499244,3845.9,3844.9,0.002]
[1760203481957,2.60030734,3845.7,3844.9,0.002]
[1760203482174,2.60057649,3845.4,3844.9,0.002]
[1760203482367,0.4496,3845.6,3844.9,0.002]
[1760203482602,0.4496,3845.3,3844.9,0.002]
[1760203483086,0.4496,3845.2,3844.9,0.002]
[1760203483438,2.60052639,3845.4,3844.9,0.002]
[1760203483641,0.4496,3845.1,3844.9,0.002]
[1760203484765,0.0704,3845.9,3845.0,2.60078023]
[1760203484967,3.1201906,3845.9,3845.2,2.6006348]
[1760203485186,0.52,3845.9,3845.2,2.6006348]
[1760203485669,0.52,3845.9,3845.3,2.60052268]
[1760203485872,0.52,3845.9,3845.0,0.4739078]
[1760203485873,0.52,3845.9,3845.1,2.60070355]
[1760203487101,0.52,3845.9,3845.0,0.4479]
[1760203487268,0.4496,3845.8,3845.2,2.60061454]
[1760203487623,0.4496,3845.7,3844.9,0.002]
[1760203487803,2.60078023,3845.0,3844.9,0.002]
[1760203488282,3.05038023,3845.0,3844.9,0.002]
[1760203490297,4.97038023,3845.0,3844.9,0.002]
[1760203490501,5.60398023,3845.0,3844.9,0.002]
[1760203490991,3.23458317,3844.7,3844.6,1e-08]
[1760203491200,3.88458317,3844.7,3844.6,1e-08]
[1760203491407,6.25418317,3844.7,3844.6,1e-08]
[1760203491797,6.59964285,3844.7,3844.6,1e-08]
[1760203491999,6.59964285,3844.7,3843.6,0.002]
[1760203492000,4.52165985,3843.7,3843.6,0.002]
[1760203492515,4.96885985,3843.7,3843.6,0.002]
[1760203492921,5.60245985,3843.7,3843.6,0.002]
[1760203495589,2.3672,3843.7,3843.6,0.002]
[1760203495989,4.96885985,3843.7,3843.6,0.002]
[1760203496489,2.3672,3843.7,3843.6,0.002]
[1760203497399,4.96885985,3843.7,3843.6,0.002]
[1760203499523,0.344,3843.8,3843.6,0.002]
[1760203499723,0.4472,3843.7,3843.6,0.002]
[1760203500303,3.04885985,3843.7,3843.6,0.002]
[1760203500609,0.4472,3843.7,3843.6,0.002]
[1760203501935,3.04885985,3843.7,3843.6,0.002]
[1760203502352,0.4472,3843.7,3843.6,0.002]
[1760203502741,0.5768,3844.0,3843.6,0.002]
[1760203502908,3.04868834,3844.0,3843.6,0.002]
[1760203503106,0.4449,3843.9,3843.6,0.002]
[1760203503341,0.6639,3843.9,3843.6,0.002]
[1760203503514,0.4427,3843.8,3843.6,0.002]
[1760203504145,0.4427,3843.8,3843.7,0.1296]
[1760203505720,0.1296,3844.5,3843.7,0.1296]
[1760203505721,0.5723,3844.5,3843.7,0.1296]
[1760203506025,0.5723,3844.5,3843.6,0.002]
[1760203506026,0.4427,3844.5,3843.6,0.002]
[1760203506345,0.4427,3844.5,3844.3,0.1296]
[1760203506546,0.4405,3844.4,3844.3,0.1296]
[1760203506738,0.651,3844.7,3844.3,0.1296]
[1760203506940,0.651,3844.7,3844.5,2.60109397]
[1760203507115,0.651,3844.7,3844.6,0.1296]
[1760203507316,0.651,3844.7,3844.6,2.73065082]
[1760203508028,0.651,3844.7,3844.6,3.16455082]
[1760203511036,0.651,3844.7,3844.6,3.66855082]
[1760203511240,0.651,3844.7,3844.6,5.58855082]
[1760203515772,0.651,3844.7,3844.6,4.52105082]
[1760203516349,0.651,3844.7,3844.6,1.92]
[1760203517140,0.651,3844.7,3844.6,4.52105082]
[1760203517539,0.651,3844.7,3844.6,1.92]
[1760203517776,1.0807,3844.7,3843.5,0.4339]
[1760203517943,1.0807,3844.7,3844.3,2.60123628]
[1760203518273,0.4297,3844.6,3844.3,2.60123628]
[1760203518678,0.651,3844.7,3844.6,2.60105082]
[1760203520640,0.651,3844.7,3844.6,3.03495082]
[1760203520843,0.651,3844.7,3844.6,2.60105082]
[1760203521062,0.651,3844.7,3844.6,2.73065082]
[1760203522303,0.651,3844.7,3844.6,6.97065082]
[1760203522687,0.651,3844.7,3844.6,4.3696]
[1760203523607,0.651,3844.7,3844.6,6.97065082]
[1760203523774,0.651,3844.7,3844.6,7.40455082]
[1760203525506,0.651,3844.7,3844.6,9.32455082]
[1760203526770,0.651,3844.7,3844.6,9.95815082]
[1760203530124,0.651,3844.7,3844.6,9.32455082]
[1760203531021,0.651,3844.7,3844.6,9.95815082]
[1760203531214,0.651,3844.7,3844.6,11.79761542]
[1760203532424,0.001,3844.7,3844.6,9.95815082]
[1760203534225,0.001,3845.1,3845.0,8.75978023]
[1760203534421,0.001,3845.1,3845.0,8.88938023]
[1760203534722,0.001,3845.1,3845.0,9.34588023]
[1760203536327,0.001,3845.1,3845.0,11.19495295]
[1760203537833,0.001,3845.1,3845.0,9.34588023]
[1760203538819,0.001,3845.1,3845.0,17.40008023]
[1760203539015,0.001,3845.1,3845.0,19.70151063]
[1760203539217,0.651,3846.8,3846.7,2.59963085]
[1760203539612,0.651,3846.8,3846.7,2.72923085]
[1760203543336,0.652,3846.8,3846.7,2.72923085]
[1760203548137,0.652,3846.8,3846.7,0.1296]
[1760203548315,1.0782,3846.8,3846.7,0.1296]
[1760203548938,0.652,3846.8,3846.7,0.1296]
[1760203549143,0.652,3846.8,3846.7,2.72923085]
[1760203549612,0.652,3846.8,3846.7,0.1296]
[1760203549943,0.652,3846.8,3846.7,2.72923085]
[1760203550125,0.652,3846.8,3846.7,3.15703085]
[1760203550640,0.652,3846.8,3846.7,2.72923085]
[1760203550841,0.652,3846.8,3846.7,3.15703085]
[1760203560547,0.652,3846.8,3846.7,5.07703085]
[1760203560756,0.001,3847.2,3847.1,2.59936055]
[1760203560937,0.001,3847.2,3846.8,2.3492]
[1760203561246,0.001,3847.2,3846.7,0.1296]
[1760203561247,0.001,3847.2,3847.1,2.72896055]
[1760203561948,0.001,3847.2,3847.1,3.15816055]
[1760203565938,0.001,3847.2,3847.1,2.72896055]
[1760203566660,0.4524,3847.2,3847.1,0.1296]
[1760203567043,0.4524,3847.2,3847.1,2.72896055]
[1760203567239,0.4524,3847.2,3847.1,0.1296]
[1760203567439,0.4524,3847.2,3847.1,2.72896055]
[1760203567650,0.001,3847.2,3847.1,2.72896055]
[1760203567953,0.001,3847.2,3847.1,3.15816055]
[1760203573541,0.001,3847.2,3847.1,2.72896055]
[1760203574167,0.4476,3847.2,3847.1,2.72896055]
[1760203574657,0.001,3847.2,3847.1,2.72896055]
[1760203580858,0.001,3847.2,3847.1,3.15816055]
[1760203581265,0.001,3847.2,3847.1,7.42315415]
[1760203581464,0.001,3847.2,3847.1,7.39716055]
[1760203582303,0.001,3847.2,3847.1,8.68104457]
[1760203582817,0.001,3847.2,3847.1,10.52582911]
[1760203583690,0.001,3847.2,3847.1,8.68104457]
[1760203583891,0.001,3847.2,3847.1,10.5302783]
[1760203584405,0.001,3847.2,3847.1,10.53047131]
[1760203585000,0.001,3847.2,3847.1,12.45047131]
[1760203585324,0.001,3847.2,3847.1,10.60104457]
[1760203586283,0.001,3847.2,3847.1,4.64896055]
[1760203586677,0.001,3847.2,3847.1,5.07816055]
[1760203589127,0.001,3847.2,3847.1,4.64896055]
[1760203590202,0.001,3847.2,3847.1,9.33386055]
[1760203590524,0.001,3847.2,3847.1,4.64896055]
[1760203591298,0.001,3847.2,3847.1,2.0496]
[1760203591498,0.001,3847.2,3847.1,2.59936055]
[1760203592810,0.001,3847.2,3847.1,3.04526055]
[1760203593004,0.001,3847.2,3847.1,4.96526055]
[1760203596415,0.001,3847.2,3847.1,14.28124457]
[1760203596739,0.4396,3847.2,3847.1,1.84797246]
[1760203597028,0.001,3847.2,3847.1,4.44733301]
[1760203597619,0.001,3847.2,3847.1,2.59936055]
[1760203598017,0.001,3847.2,3847.1,3.04526055]
[1760203601403,0.001,3847.2,3847.1,3.17486055]
[1760203601914,0.001,3847.2,3847.1,5.12085415]
[1760203602110,0.001,3847.2,3847.1,5.74486055]
[1760203605052,0.001,3847.2,3847.1,11.13814457]
[1760203605229,0.001,3847.2,3847.1,12.16194457]
[1760203608356,0.65,3848.1,3848.0,2.59875259]
[1760203608532,0.65,3848.1,3848.0,10.04163661]
[1760203608724,0.65,3848.1,3848.0,10.51493661]
[1760203609056,0.65,3848.1,3848.0,11.29637484]
[1760203609352,0.65,3848.1,3848.0,10.51493661]
[1760203611048,0.4352,3849.3,3848.0,10.51493661]
[1760203611049,0.4352,3849.3,3848.5,2.59839613]
[1760203611233,0.4352,3849.3,3848.6,8.12117833]
[1760203611434,0.4352,3849.3,3848.8,2.59815097]
[1760203611645,2.59765759,3849.7,3848.9,2.59812949]
[1760203611844,0.4352,3849.5,3849.0,2.59806833]
[1760203612370,2.7912,3850.0,3849.1,0.02598009]
[1760203612557,2.7912,3850.0,3849.0,5.52288402]
[1760203612558,2.57,3850.0,3849.3,2.59787221]
[1760203612882,2.57,3850.0,3849.2,0.4733]
[1760203613076,3.24740924,3850.0,3849.2,3.07121438]
[1760203613275,2.57,3850.0,3849.3,2.59787315]
[1760203613649,3.24741151,3850.0,3849.2,3.07122877]
[1760203614381,0.4352,3849.9,3849.3,2.59786303]
[1760203615266,0.4352,3849.9,3849.0,2.59807615]